Cogmind - Beta 13 @@@ ROGUE MODE // 2024.04.13 @ 16:48:16 Player: djrubbie Result: Destroyed by UC-S2A(R) with Subdweller Laser Performance ------------- Evolutions (0) 0 Regions Visited (3) 600 Robots Destroyed (40) 200 Value Destroyed (823) 823 Prototype IDs (2) 40 Alien Tech Used (0) 0 Bonus (120) 120 TOTAL SCORE: 1783 Bonus ------- Follower Combat Kills 120 Cogmind --------- Core Integrity 0/250 Matter 138/300 Energy 160/160 System Corruption 0% Temperature Cool (6) Movement Walking (400) Ox4 Location -10/Subcaves Parts ------- > --- POWER (1) -------- Light Nuclear Core > --- PROPULSION (2) --- Aluminum Leg Aluminum Leg > --- UTILITY (2) ------ Huge Storage Unit > --- WEAPON (2) ------- Grenade Launcher Rocket Launcher > --- INVENTORY (25) --- Ion Engine Ion Engine Light Ion Engine Light Treads Aluminum Leg Small Laser Light Assault Rifle Light Assault Rifle Light Assault Rifle Light Assault Rifle Makeshift Sword Peak State ------------ > --- POWER ------------ Light Nuclear Core > --- PROPULSION ------- Aluminum Leg Aluminum Leg > --- UTILITY ---------- Huge Storage Unit > --- WEAPON ----------- Grenade Launcher Rocket Launcher > --- INVENTORY -------- Ion Engine Ion Engine Light Ion Engine Light Treads Aluminum Leg Small Laser Light Assault Rifle Light Assault Rifle Light Assault Rifle Light Assault Rifle Makeshift Sword [Rating: 10] Favorites ----------- Power Ion Engine Engine Ion Engine Power Core Light Nuclear Core Propulsion Aluminum Leg Treads Light Treads Leg Aluminum Leg Utility Seismic Detector Device Seismic Detector Storage Large Storage Unit Weapon Assault Rifle Energy Gun Small Laser Ballistic Gun Assault Rifle Launcher Grenade Launcher Build | -11 -10 -10 -10 ------- Run | Yrd Mat Min Sub Slots Evolved . | . . . . Power . | . . . . Propulsion . | . . . . Utility . | . . . . Weapon . | . . . . Parts Attached 26 | 7 12 1 6 Power 3 | 1 . . 2 Engine 2 | 1 . . 1 Core 1 | . . . 1 Reactor . | . . . . Propulsion 9 | 2 5 . 2 Treads 4 | 2 2 . . Leg 5 | . 3 . 2 Wheel . | . . . . Hover . | . . . . Flight . | . . . . Utility 5 | 2 2 1 . Device 2 | 1 1 . . Storage 3 | 1 1 1 . Processor . | . . . . Hackware . | . . . . Protection . | . . . . Artifact . | . . . . Weapon 9 | 2 5 . 2 Energy Gun 2 | 1 1 . . Energy Cannon . | . . . . Ballistic Gun 4 | 1 3 . . Ballistic Cannon . | . . . . Launcher 3 | . 1 . 2 Special Weapon . | . . . . Impact Weapon . | . . . . Slashing Weapon . | . . . . Piercing Weapon . | . . . . Special Melee Weapon . | . . . . Unidentified Prototypes . | . . . . Parts Lost 10 | . 4 . 6 Power 1 | . . . 1 Propulsion 4 | . 2 . 2 Utility 1 | . . . 1 Weapon 4 | . 2 . 2 Highest Loss Streak 6 | . 2 . 6 To Critical Strikes . | . . . . Average Slot Usage (%) 98 | . 99 100 94 Engine 13 | . 14 14 9 Treads 3 | . 6 . . Leg 24 | . 21 28 27 Device 13 | . 13 14 9 Storage 14 | . 14 14 14 Energy Gun 1 | . 1 . . Ballistic Gun 14 | . 15 14 9 Launcher 12 | . 10 14 19 Naked Turns . | . . . . Heaviest Build 92 | 13 31 91 92 Greatest Support 40 | 40 40 20 20 Greatest Overweight (x) 8 | . 8 4 4 Average Overweight (x) 1 | . . 2 4 Largest Inventory Capacity 25 | 8 15 25 25 Average Capacity 17 | 7 14 22 25 Most Carried 16 | 5 11 16 16 Average Carried 10 | 1 8 13 14 Final Capacity 25 | 8 15 25 25 Final Carried 16 | 1 10 16 11 Class Distribution -------------------- 100% | Mutant Dominant Class ---------------- Mutant | -10/Materials Mutant | -10/Mines Mutant | -10/Subcaves Resources | -11 -10 -10 -10 ----------- Run | Yrd Mat Min Sub Matter Collected 869 | 279 521 56 13 Remotely . | . . . . Salvage Created 936 | 85 760 34 57 Parts 85 | 4 64 10 7 Haulers Intercepted 2 | . 2 . . Recyclers Shooed 1 | . 1 . . Parts Field Recycled . | . . . . Retrieved Matter . | . . . . Parts Self-Destructed 2 | . . . 2 Prevented . | . . . . Kills | -11 -10 -10 -10 ------- Run | Yrd Mat Min Sub Combat Hostiles Destroyed 23 | . 13 6 4 Guns 9 | . 9 . . AOE 14 | . 4 6 4 Classes Destroyed 10 | 2 7 . 1 Worker 3 | . 3 . . Builder 3 | . 3 . . Tunneler 1 | 1 . . . Hauler 2 | . 2 . . Recycler 3 | 1 2 . . Operator 2 | . 2 . . Watcher 3 | . 3 . . Swarmer 9 | . 3 6 . Grunt 10 | . 10 . . Subdweller 4 | . . . 4 Best Kill Streak 9 | 2 9 3 3 Combat Bots Only 6 | . 6 3 3 Max Kills in Single Turn 4 | 1 4 2 1 Gunslinging . | . . . . Exploded 2 | . 2 2 1 Melee . | . . . . Uniques/NPCs Destroyed . | . . . . Combat | -11 -10 -10 -10 -------- Run | Yrd Mat Min Sub Hostile Shots Fired 95 | . 63 5 27 Missed 30 | . 23 1 6 Damage Taken 1408 | . 731 99 578 Core 256 | . 114 . 142 Absorbed by Shields . | . . . . Regen/Repaired (Parts) 14 | . 14 . . Core Remaining (%) 100 | 100 . . . Volleys Fired 117 | 9 92 4 12 Largest 2 | 1 2 2 2 Hottest 60 | 20 60 50 53 Shots Fired 183 | 9 146 8 20 Gun 150 | 9 128 4 9 Cannon . | . . . . Launcher 33 | . 18 4 11 Special . | . . . . Kinetic 137 | 9 115 4 9 Thermal 13 | . 13 . . Explosive 33 | . 18 4 11 Electromagnetic . | . . . . Robot Hit Streak 21 | 4 8 5 21 Robot Miss Streak 5 | 1 5 1 . Penetration Max . | . . . . Secondary Targets 2 | . 2 . . Max Gunslinging Chain 1 | . 1 . . Shots Hit Robots 107 | 7 79 5 16 Core Hits 75 | 4 55 7 9 Critical Kills . | . . . . Critical Parts Destroyed . | . . . . Critical Strikes . | . . . . Melee Attacks . | . . . . Impact . | . . . . Slashing . | . . . . Piercing . | . . . . Sneak Attacks . | . . . . Combat Hostiles . | . . . . Follow-up Attacks . | . . . . Damage Inflicted 2677 | 61 1587 341 688 Guns 976 | 61 801 28 86 Cannons . | . . . . Explosions 1669 | . 769 298 602 Melee . | . . . . Ramming 32 | . 17 15 . Kinetic 874 | 61 699 28 86 Thermal 155 | . 155 . . Explosive 1616 | . 716 298 602 Electromagnetic . | . . . . Impact . | . . . . Slashing . | . . . . Piercing . | . . . . Highest Corruption . | . . . . Average Corruption . | . . . . Corruption Purged . | . . . . Corruption Blocked . | . . . . Overload Shots . | . . . . Overflow Damage 69 | . 61 8 . Projectiles . | . . . . Explosions 69 | . 61 8 . Melee . | . . . . Knockbacks . | . . . . Impact . | . . . . Kinetic . | . . . . Secondary . | . . . . Self-Inflicted Damage 300 | . 232 68 . Shots 9 | . 7 2 . Rammed . | . . . . Targets Rammed 5 | . 3 2 . Kicked 5 | . 3 2 . Crushed . | . . . . Highest Temperature 150 | . 150 . . Average Temperature 55 | . 55 . . Received Heat Transfer 306 | . 282 . 24 Siege Activations . | . . . . Robots Corrupted . | . . . . Combat Hostiles . | . . . . Parts Fried . | . . . . Impact Corruptions . | . . . . Robots Melted . | . . . . Combat Hostiles . | . . . . Parts Melted . | . . . . Heat Transferred 275 | . 275 . . Parts Sabotaged . | . . . . Parts Stolen . | . . . . Parts Stripped . | . . . . Power Chain Reactions . | . . . . Alert | -11 -10 -10 -10 ------- Run | Yrd Mat Min Sub Peak Influence 257 | 10 233 257 . Initial 42 | . 6 42 . Average 88 | 6 93 82 . Maximum Alert Level 1 | . 1 1 . Low Security (%) 87 | 100 90 80 . Level 1 12 | . 9 19 . Level 2 . | . . . . Level 3 . | . . . . Level 4 . | . . . . Level 5 . | . . . . High Security . | . . . . Max Security . | . . . . Squads Dispatched 3 | . 3 . . Investigation . | . . . . Extermination . | . . . . Reinforcement 3 | . 3 . . Assault . | . . . . Garrison . | . . . . Intercept . | . . . . Searches Triggered . | . . . . Construction Impeded . | . . . . Haulers Reinforced . | . . . . Active Scanning Responses . | . . . . Cargo Convoy Interrupts . | . . . . Stealth | -11 -10 -10 -10 --------- Run | Yrd Mat Min Sub Distress Signals 2 | . 2 . . Communications Jammed . | . . . . Distress Signals . | . . . . Times Spotted 39 | . 28 6 5 Peak Tracking Total 4 | . 4 3 3 Tactical Retreats 1 | . 1 . . Traps | -11 -10 -10 -10 ------- Run | Yrd Mat Min Sub Traps Triggered 1 | . 1 . . Indirectly . | . . . . Trap Hack Attempts . | . . . . Triggered . | . . . . Disarmed . | . . . . Reprogrammed . | . . . . Reused . | . . . . Traps Extracted . | . . . . Installed . | . . . . Triggered . | . . . . Machines | -11 -10 -10 -10 ---------- Run | Yrd Mat Min Sub Machines Disabled 8 | . 5 3 . Max in Single Turn 3 | . 2 3 . Machines Repaired . | . . . . Machines Dismantled . | . . . . Machines Sabotaged . | . . . . Overloaded Fab Kills . | . . . . Hacking | -11 -10 -10 -10 --------- Run | Yrd Mat Min Sub Machines Accessed 4 | . 4 . . Terminals 2 | . 2 . . Fabricators . | . . . . Repair Stations 1 | . 1 . . Recycling Units 1 | . 1 . . Scanalyzers . | . . . . Garrison Access . | . . . . Total Hacks 7 | . 7 . . Successful 4 | . 4 . . Failed 3 | . 3 . . Catastrophic 1 | . 1 . . Database Lockouts . | . . . . Manual . | . . . . Terminals 3 | . 3 . . Fabricators . | . . . . Repair Stations 3 | . 3 . . Recycling Units 1 | . 1 . . Scanalyzers . | . . . . Garrison Access . | . . . . Terminal Hacks 2 | . 2 . . Robot Analysis 1 | . 1 . . Prototype ID Bank 1 | . 1 . . Fabricator Hacks . | . . . . Repair Station Hacks 2 | . 2 . . Scan Component 1 | . 1 . . Repair 1 | . 1 . . Recycling Unit Hacks . | . . . . Scanalyzer . | . . . . Garrison Access Hacks . | . . . . Unauthorized Hacks . | . . . . Terminals . | . . . . Fabricators . | . . . . Repair Stations . | . . . . Recycling Units . | . . . . Scanalyzers . | . . . . Garrison Access . | . . . . Data Cores Recovered . | . . . . Used . | . . . . Hacking Detections 3 | . 3 . . Full Trace Events 1 | . 1 . . Feedback Events . | . . . . Feedback Blocked . | . . . . Robot Schematics Acquired . | . . . . Robots Built . | . . . . Authchips . | . . . . Time . | . . . . Total Robot Build Rating . | . . . . Part Schematics Acquired . | . . . . Parts Built . | . . . . Authchips . | . . . . Time . | . . . . Total Part Build Rating . | . . . . Parts Repaired 1 | . 1 . . Time 26 | . 26 . . Parts Recycled . | . . . . Recycled Matter . | . . . . Retrieved Matter . | . . . . Retrieved Components . | . . . . Parts Scanalyzed . | . . . . Part Schematics Acquired . | . . . . Parts Damaged . | . . . . Bothacking | -11 -10 -10 -10 ------------ Run | Yrd Mat Min Sub Used RIF Installer . | . . . . Robots Hacked . | . . . . Non-combat . | . . . . Combat . | . . . . Robot Hacks Applied . | . . . . Relay Couplers Released . | . . . . Fabnet Peak Effective % . | . . . . Robots Rewired . | . . . . Allies Hacked . | . . . . Hacks Repelled . | . . . . Allies | -11 -10 -10 -10 -------- Run | Yrd Mat Min Sub Total Allies 3 | . . 3 . Largest Group 3 | . . 3 1 Highest-Rated Group 40 | . . 40 16 Highest-Rated Ally 16 | . . 16 16 Total Orders . | . . . . Ally Attacks 31 | . . 31 . Total Damage 331 | . . 331 . Kills 4 | . . 4 . Allies Corrupted . | . . . . Allies Melted . | . . . . Intel | -11 -10 -10 -10 ------- Run | Yrd Mat Min Sub Robot Analysis Total 1 | . 1 . . Derelict Logs Recovered 2 | . . 1 1 Drone Launches . | . . . . Drone Recoveries . | . . . . Exploration | -11 -10 -10 -10 ------------- Run | Yrd Mat Min Sub Turns Passed 5830 | 114 3377 1779 560 Spaces Moved 2053 | 67 1324 543 119 Core 24 | 21 3 . . Treads 352 | 46 306 . . Legs 1677 | . 1015 543 119 Wheels . | . . . . Hover . | . . . . Flight . | . . . . Fastest Speed 50 | 50 160 190 400 Average Speed 234 | 125 189 320 400 Slowest Speed 450 | 160 450 400 400 Overloaded Moves . | . . . . Propulsion Burnouts . | . . . . Robots Hopped . | . . . . Cave-ins Triggered . | . . . . Exploration Rate (%) 54 | 5 98 99 17 Regions Visited 3 Branch Regions 2 Pre-discovered Areas 1 | . . 1 . Known Exits Taken . | . . . . Unknown Exits Taken 3 | 1 1 1 . Scrap Searched 2 | . . 1 1 Spaces Dug 6 | . 6 . . Terrain Destroyed 143 | . 94 19 30 Melee . | . . . . Projectile . | . . . . AOE 143 | . 94 19 30 Terrain Rammed . | . . . . Walls Destroyed . | . . . . Machines Disabled . | . . . . Actions | -11 -10 -10 -10 --------- Run | Yrd Mat Min Sub Total 2894 | 90 2049 573 182 Wait 659 | . 598 16 45 Move 2050 | 66 1323 542 119 Hop . | . . . . Pick Up 34 | 8 19 7 . Fast Attach . | . . . . Attach 21 | 7 9 . 5 Detach . | . . . . Swap 5 | . 3 1 1 Drop 3 | . 2 1 . Fire 117 | 9 92 4 12 Melee . | . . . . Ram . | . . . . Kick 5 | . 3 2 . Crush . | . . . . Escape Stasis . | . . . . Rewire . | . . . . Trap . | . . . . Miscellaneous . | . . . . Route ------- -11/Scrapyard -10/Materials (discovered 5 exits: [*Mat x3] / [*Min] / [*Sub]) -10/Mines (discovered 3 exits: [*Mat x2] / [*Sub]) -10/Subcaves History --------- Turn | Location | Event 8 | -11/Scrapyard | Discovered new exit (range 15) 115 | -11/Scrapyard | Entered Materials 307 | -10/Materials | Build established: Mutant 1000 | -10/Materials | Discovered new exit (range 10) 1305 | -10/Materials | Discovered new exit (range 16) 1783 | -10/Materials | Repaired Seismic Detector 1864 | -10/Materials | Discovered new exit (range 7) 2074 | -10/Materials | Discovered new exit (range 11) 2252 | -10/Materials | Discovered new exit (range 9) 3492 | -10/Materials | Entered Mines 3590 | -10/Mines | Discovered new exit (range 14) 3715 | -10/Mines | Assisted by bots powering up and referring to "LRC-V3" 3812 | -10/Mines | A weapon hastily lodged in a ceiling crevice suddenly fell to the ground 4448 | -10/Mines | Discovered new exit (range 8) 4838 | -10/Mines | Discovered new exit (range 6) 4933 | -10/Mines | Received a Rocket Launcher from a helpful Derelict 5271 | -10/Mines | Entered Subcaves 5271 | -10/Subcaves | Accompanied by 1 ally 5283 | -10/Subcaves | Learned 4 Materials zone layouts 5609 | -10/Subcaves | Core integrity fell below 50% 5614 | -10/Subcaves | Core integrity fell below 20% 5665 | -10/Subcaves | Lost 6 parts (1p2n1u2w) 5831 | -10/Subcaves | Destroyed by UC-S2A(R) with Subdweller Laser Last Messages --------------- Subatomizers dissect the Sub. Monowheel. Aluminum Leg destroyed. Grenade Launcher destroyed. Ion Engine destroyed. 0B-T1U(R) destroyed. Subatomizers dissect the Disposable Heat Sink. G6-OE9(R) destroyed. Aluminum Leg destroyed. The unstable cave ceiling collapses. Assault Rifle destroyed. Subatomizers dissect the Disposable Heat Sink. Seismic Detector destroyed. Destroyed Scrap Shield. The unstable cave ceiling collapses. 13-GL5(R) destroyed. The unstable cave ceiling collapses. Subatomizers dissect the Disposable Heat Sink. The unstable cave ceiling collapses. Subatomizers dissect the Sub. Optics. The unstable cave ceiling collapses. Map ----- +----------------------------------------------------+ | ??????????????????????????????????? ? ?????##"""? | | ?????????????????????????????????## ? ?????# ""? | | ?????????????????????????????????# ??####" ""? | | ??????????????????????????????#### ### # " ""# | | ?????????????????????????????## ## "" | | ?????????????????????????????# ### "" | | ?????????????????????????????# "# # " # ""# | | ?????????????????????????????# ### " "### | | ?????????????????????????????# " ## | | ?????????????????????????????# & | | ?????????????????????????????# & | | ???????????????????????????### # # | | ??????????????????????????## # | | ????????????????????????### #### | | ???????????????????????## # # | | ???????????????????????# #### # | | ???????????????????????## # ### | | ????????????????????????## ### # # | | ?????????????????????????## #### ### | | ??????????????????????????#### #####?## # | | ?????????????????????????###?## ##??## # | | ????????????????????????## ##?# ##??# | | ???????????????##??###### #?# | | ????????????"? #" #"# # ### ## | | ???????????"" " "" ### | | ?????????# R @ #?# ### | | ????????? # ## ##### ### #? ##???? | | ???????????????????###????# ####??# #????? | | ??????????????????????????###?????? #????? | | ??????????????????????????????????? ###?????? | | ???????????????????????????????????# ##???????? | | ????????????????????????????????????#####????????? | | ?????????????????????????????????????????????????? | | ?????????????????????????????????????????????????? | | ?????????????????????????????????????????????????? | | ?????????????????????????????????????????????????? | | ?????????????????????????????????????????????????? | | ?????????????????????????????????????????????????? | | ?????????????????????????????????????????????????? | | ?????????????????????????????????????????????????? | | ?????????????????????????????????????????????????? | | ?????????????????????????????????????????????????? | | ?????????????????????????????????????????????????? | | ?????????????????????????????????????????????????? | | ?????????????????????????????????????????????????? | | ?????????????????????????????????????????????????? | | ?????????????????????????????????????????????????? | | ?????????????????????????????????????????????????? | | ?????????????????????????????????????????????????? | | ?????????????????????????????????????????????????? | +----------------------------------------------------+ Best States ------------- Heat Dissipation 25 Energy Generation 14 Energy Capacity 250 Matter Stores 300 Matter Capacity 300 Sight Range 16 Terrain Scan Density 10 Evasion (%) 50 Recoil Reduction 2 Item Schematics ----------------- None Robot Schematics ------------------ None Fabricated ------------ Nothing Alien Tech Used ----------------- None Achievements -------------- None Challenges ------------ None Game ------ Seed IntegrityScrapStripper Manual? 0 Play Time 00:28:11 Cumulative 18.1 hours Start 2024.04.12 @ 23:13:48 End 2024.04.13 @ 16:48:16 Sessions 1 Manual Loads 0 Difficulty Rogue Special Mode None Game No. 23 Rogue 23 Adventurer 0 Explorer 0 Win Type - Total 0 Types 0/0/0/0/0/0/0/0/0 Lore% 16 Gallery% 12 Achievement% 16 Wizard Run 0 Options --------- Layout 1 ASCII 0 Keyboard 0 Movement Mouse Keybinds 0 Fullscreen 0 Font 28/SmallcapsGlow Map View 50x35 Zoom Use 0% Tactical HUD 0 Map Filters NONE Filters NONE Steam 1 RUN: c9989fed-c808-4953-a7e3-68f4d06afbbc